[Event "Late-Titled-Tuesday-Blitz-February-13-2024"]
[Site "Chess.com"]
[Date "2024.02.13"]
[Round "6"]
[White "ErikRonka"]
[Black "Miguelito"]
[Result "1/2-1/2"]
[WhiteElo "2573"]
[BlackElo "2760"]
[TimeControl "180+1"]
[EndTime "15:10:23 PST"]
[Termination "Game drawn by 50-move rule"]

1. e4 {[%clk 0:03:00.9]} 1... c5 {[%clk 0:02:59.7]} 2. Nf3 {[%clk 0:03:01]} 2...
d6 {[%clk 0:03:00.2]} 3. d4 {[%clk 0:03:01.5]} 3... cxd4 {[%clk 0:03:01.1]} 4.
Nxd4 {[%clk 0:03:02.3]} 4... Nf6 {[%clk 0:03:00.8]} 5. Nc3 {[%clk 0:03:03]} 5...
a6 {[%clk 0:03:00.9]} 6. Be3 {[%clk 0:03:03.6]} 6... Qc7 {[%clk 0:02:59.4]} 7.
f3 {[%clk 0:03:03.1]} 7... h5 {[%clk 0:02:59.5]} 8. Qd2 {[%clk 0:03:01.3]} 8...
b5 {[%clk 0:02:58]} 9. a4 {[%clk 0:03:00.1]} 9... bxa4 {[%clk 0:02:56.8]} 10.
Nxa4 {[%clk 0:02:59.3]} 10... e6 {[%clk 0:02:49.4]} 11. c4 {[%clk 0:02:52.1]}
11... Nbd7 {[%clk 0:02:48.9]} 12. Be2 {[%clk 0:02:50.7]} 12... h4 {[%clk
0:02:48.4]} 13. O-O {[%clk 0:02:49.7]} 13... Be7 {[%clk 0:02:45.8]} 14. b4
{[%clk 0:02:48]} 14... Bb7 {[%clk 0:02:43.4]} 15. Nb3 {[%clk 0:02:41.8]} 15...
Rb8 {[%clk 0:02:42]} 16. Na5 {[%clk 0:02:18.5]} 16... Ba8 {[%clk 0:02:41.8]} 17.
b5 {[%clk 0:02:15.6]} 17... h3 {[%clk 0:02:42.3]} 18. b6 {[%clk 0:01:40.7]}
18... Nxb6 {[%clk 0:02:38.7]} 19. Nxb6 {[%clk 0:01:40.6]} 19... Rxb6 {[%clk
0:02:35.9]} 20. Bxb6 {[%clk 0:01:22.3]} 20... Qxb6+ {[%clk 0:02:36.8]} 21. Kh1
{[%clk 0:01:22.6]} 21... hxg2+ {[%clk 0:02:36]} 22. Kxg2 {[%clk 0:01:23.5]}
22... Qc5 {[%clk 0:02:18.3]} 23. Rab1 {[%clk 0:01:02.6]} 23... Nd7 {[%clk
0:02:17.5]} 24. Bd1 {[%clk 0:00:49.8]} 24... Qh5 {[%clk 0:02:12.9]} 25. Kh1
{[%clk 0:00:44.1]} 25... Qh4 {[%clk 0:01:45.7]} 26. Ba4 {[%clk 0:00:35.7]} 26...
Kd8 {[%clk 0:01:00.4]} 27. Nc6+ {[%clk 0:00:24.6]} 27... Bxc6 {[%clk 0:00:53.8]}
28. Bxc6 {[%clk 0:00:25.5]} 28... Nc5 {[%clk 0:00:54.2]} 29. Rb8+ {[%clk
0:00:15.2]} 29... Kc7 {[%clk 0:00:53.8]} 30. Rxh8 {[%clk 0:00:11.4]} 30... Qxh8
{[%clk 0:00:53.2]} 31. Ba4 {[%clk 0:00:03]} 31... Nxa4 {[%clk 0:00:48]} 32. Qa5+
{[%clk 0:00:03.6]} 32... Nb6 {[%clk 0:00:48.5]} 33. Rb1 {[%clk 0:00:04]} 33...
Qb8 {[%clk 0:00:48.7]} 34. Qxa6 {[%clk 0:00:04.6]} 34... Qb7 {[%clk 0:00:46.4]}
35. Qb5 {[%clk 0:00:04.6]} 35... Qc6 {[%clk 0:00:46.2]} 36. Qa6 {[%clk
0:00:03.9]} 36... Bd8 {[%clk 0:00:42.6]} 37. Qa7+ {[%clk 0:00:03]} 37... Qb7
{[%clk 0:00:42.6]} 38. Qa3 {[%clk 0:00:03.2]} 38... Qc6 {[%clk 0:00:34.6]} 39.
c5 {[%clk 0:00:03]} 39... dxc5 {[%clk 0:00:33.1]} 40. Rc1 {[%clk 0:00:03.5]}
40... c4 {[%clk 0:00:33.1]} 41. Qf8 {[%clk 0:00:03.8]} 41... Qd7 {[%clk
0:00:32.3]} 42. Qxg7 {[%clk 0:00:03.9]} 42... Kb8 {[%clk 0:00:27.6]} 43. Qg1
{[%clk 0:00:03.9]} 43... Qd3 {[%clk 0:00:27]} 44. Qf2 {[%clk 0:00:03.7]} 44...
Bc7 {[%clk 0:00:26.3]} 45. Kg2 {[%clk 0:00:02.4]} 45... c3 {[%clk 0:00:25.2]}
46. Qc2 {[%clk 0:00:02.5]} 46... Qxc2+ {[%clk 0:00:24.2]} 47. Rxc2 {[%clk
0:00:03.4]} 47... Na4 {[%clk 0:00:22]} 48. f4 {[%clk 0:00:03.3]} 48... Bxf4
{[%clk 0:00:22]} 49. h4 {[%clk 0:00:03.9]} 49... Kc7 {[%clk 0:00:20.8]} 50. Kf3
{[%clk 0:00:04.4]} 50... Bh6 {[%clk 0:00:20.2]} 51. Ke2 {[%clk 0:00:04.2]} 51...
Kd6 {[%clk 0:00:20]} 52. Kd3 {[%clk 0:00:04.8]} 52... Ke5 {[%clk 0:00:20.2]} 53.
Kc4 {[%clk 0:00:04.9]} 53... Kxe4 {[%clk 0:00:17.9]} 54. Kb4 {[%clk 0:00:05.5]}
54... Nb6 {[%clk 0:00:18]} 55. Kxc3 {[%clk 0:00:05]} 55... Nd5+ {[%clk
0:00:18.7]} 56. Kb3 {[%clk 0:00:03.4]} 56... f5 {[%clk 0:00:17.3]} 57. Rg2
{[%clk 0:00:03.3]} 57... Nf4 {[%clk 0:00:15.5]} 58. Rg8 {[%clk 0:00:02.7]} 58...
Kf3 {[%clk 0:00:13.5]} 59. Kc2 {[%clk 0:00:03.6]} 59... e5 {[%clk 0:00:13.4]}
60. Rh8 {[%clk 0:00:04]} 60... Bg7 {[%clk 0:00:13.4]} 61. Rh7 {[%clk 0:00:04.6]}
61... Bf6 {[%clk 0:00:13.5]} 62. h5 {[%clk 0:00:05.1]} 62... e4 {[%clk 0:00:12]}
63. Rf7 {[%clk 0:00:06]} 63... Be5 {[%clk 0:00:11.6]} 64. Rxf5 {[%clk
0:00:06.3]} 64... Bd4 {[%clk 0:00:10.6]} 65. Rf8 {[%clk 0:00:03.8]} 65... e3
{[%clk 0:00:10.6]} 66. Re8 {[%clk 0:00:04.1]} 66... e2 {[%clk 0:00:10.4]} 67.
Kd2 {[%clk 0:00:03.9]} 67... Kf2 {[%clk 0:00:04.9]} 68. h6 {[%clk 0:00:03.9]}
68... Bc5 {[%clk 0:00:01.8]} 69. h7 {[%clk 0:00:03.3]} 69... Bb4+ {[%clk
0:00:02.3]} 70. Kc2 {[%clk 0:00:03.7]} 70... e1=Q {[%clk 0:00:02.5]} 71. Rxe1
{[%clk 0:00:03.1]} 71... Bxe1 {[%clk 0:00:03.4]} 72. h8=Q {[%clk 0:00:03.8]}
72... Ng2 {[%clk 0:00:03.9]} 73. Qf6+ {[%clk 0:00:04]} 73... Kg1 {[%clk
0:00:04.3]} 74. Kb3 {[%clk 0:00:04.4]} 74... Bf2 {[%clk 0:00:04.4]} 75. Qf5
{[%clk 0:00:04.4]} 75... Ne3 {[%clk 0:00:04.7]} 76. Qb1+ {[%clk 0:00:02.9]}
76... Kg2 {[%clk 0:00:05.2]} 77. Ka4 {[%clk 0:00:03.7]} 77... Kf3 {[%clk
0:00:05.7]} 78. Qb8 {[%clk 0:00:04.2]} 78... Ke2 {[%clk 0:00:06.2]} 79. Qf8
{[%clk 0:00:04.9]} 79... Be1 {[%clk 0:00:06.7]} 80. Qg7 {[%clk 0:00:05.5]} 80...
Bd2 {[%clk 0:00:07.6]} 81. Qh7 {[%clk 0:00:06.2]} 81... Nd1 {[%clk 0:00:07.1]}
82. Qh2+ {[%clk 0:00:06.7]} 82... Kd3 {[%clk 0:00:07.1]} 83. Kb5 {[%clk
0:00:07.6]} 83... Nc3+ {[%clk 0:00:07.4]} 84. Kc6 {[%clk 0:00:07.6]} 84... Be3
{[%clk 0:00:08.3]} 85. Qh7+ {[%clk 0:00:07.9]} 85... Kd4 {[%clk 0:00:08.4]} 86.
Qh4+ {[%clk 0:00:07.7]} 86... Kd3 {[%clk 0:00:08.7]} 87. Qh7+ {[%clk 0:00:07.4]}
87... Kc4 {[%clk 0:00:08.9]} 88. Qh1 {[%clk 0:00:08.3]} 88... Bd4 {[%clk
0:00:09.2]} 89. Kd6 {[%clk 0:00:08.8]} 89... Bc5+ {[%clk 0:00:09.4]} 90. Ke6
{[%clk 0:00:08.8]} 90... Nb5 {[%clk 0:00:09.8]} 91. Qf1+ {[%clk 0:00:09.4]}
91... Kb4 {[%clk 0:00:10.3]} 92. Kd5 {[%clk 0:00:10]} 92... Nc3+ {[%clk
0:00:10.1]} 93. Kc6 {[%clk 0:00:10.5]} 93... Bd4 {[%clk 0:00:09.8]} 94. Qf4
{[%clk 0:00:10]} 94... Kc4 {[%clk 0:00:10.3]} 95. Qf7+ {[%clk 0:00:10]} 95...
Kb4 {[%clk 0:00:10.8]} 96. Qb7+ {[%clk 0:00:09.5]} 96... Kc4 {[%clk 0:00:11.7]}
97. Qa6+ {[%clk 0:00:09.3]} 97... Kb3 {[%clk 0:00:12.3]} 98. Qd3 {[%clk
0:00:09.3]} 98... Be5 {[%clk 0:00:11.5]} 99. Kc5 {[%clk 0:00:08.7]} 99... Bf6
{[%clk 0:00:11.1]} 100. Qc4+ {[%clk 0:00:08.6]} 100... Kb2 {[%clk 0:00:10.7]}
101. Qb4+ {[%clk 0:00:08.9]} 101... Kc2 {[%clk 0:00:10.7]} 102. Kc4 {[%clk
0:00:09.3]} 102... Be5 {[%clk 0:00:09.5]} 103. Qb3+ {[%clk 0:00:09.8]} 103...
Kd2 {[%clk 0:00:09.8]} 104. Qb2+ {[%clk 0:00:10.2]} 104... Ke3 {[%clk
0:00:10.5]} 105. Qc2 {[%clk 0:00:10.2]} 105... Kf4 {[%clk 0:00:10]} 106. Qd2+
{[%clk 0:00:09.8]} 106... Ke4 {[%clk 0:00:10.2]} 107. Qe1+ {[%clk 0:00:09.7]}
107... Kf4 {[%clk 0:00:10.6]} 108. Qf2+ {[%clk 0:00:10]} 108... Ke4 {[%clk
0:00:11.1]} 109. Qg2+ {[%clk 0:00:09.9]} 109... Kf5 {[%clk 0:00:11.4]} 110. Kd3
{[%clk 0:00:10.6]} 110... Bf6 {[%clk 0:00:11.3]} 111. Qf3+ {[%clk 0:00:10.7]}
111... Ke6 {[%clk 0:00:11.7]} 112. Kc4 {[%clk 0:00:10.6]} 112... Be5 {[%clk
0:00:11.6]} 113. Qg4+ {[%clk 0:00:10.4]} 113... Kf6 {[%clk 0:00:10.8]} 114. Qh4+
{[%clk 0:00:10]} 114... Kf5 {[%clk 0:00:11.1]} 115. Qh3+ {[%clk 0:00:09.4]}
115... Ke4 {[%clk 0:00:11.1]} 116. Kc5 {[%clk 0:00:08.2]} 116... Bd4+ {[%clk
0:00:10.9]} 117. Kd6 {[%clk 0:00:07.8]} 117... Be5+ {[%clk 0:00:11.4]} 118. Ke6
{[%clk 0:00:07.5]} 118... Bd4 {[%clk 0:00:11.9]} 119. Qg2+ {[%clk 0:00:07.7]}
119... Kd3 {[%clk 0:00:12.3]} 120. Kf5 {[%clk 0:00:07.8]} 120... Kc4 {[%clk
0:00:12.8]} 121. Qf1+ {[%clk 0:00:07.7]} 121... Kc5 {[%clk 0:00:13.3]} 122. Qc1
{[%clk 0:00:07.3]} 1/2-1/2

[Event "Late-Titled-Tuesday-Blitz-February-13-2024"]
[Site "Chess.com"]
[Date "2024.02.13"]
[Round "7"]
[White "VitaliyBernadskiy"]
[Black "dropstoneDP"]
[Result "1/2-1/2"]
[WhiteElo "2886"]
[BlackElo "3042"]
[TimeControl "180+1"]
[EndTime "15:12:35 PST"]
[Termination "Game drawn by repetition"]

1. Nf3 {[%clk 0:03:00.3]} 1... d5 {[%clk 0:02:56.1]} 2. g3 {[%clk 0:03:00.6]}
2... g6 {[%clk 0:02:54.8]} 3. Bg2 {[%clk 0:02:59.5]} 3... Bg7 {[%clk 0:02:55.4]}
4. O-O {[%clk 0:02:59.7]} 4... e5 {[%clk 0:02:50.7]} 5. d3 {[%clk 0:03:00]} 5...
Ne7 {[%clk 0:02:50.6]} 6. e4 {[%clk 0:03:00.4]} 6... Nbc6 {[%clk 0:02:48.8]} 7.
exd5 {[%clk 0:03:00.7]} 7... Nxd5 {[%clk 0:02:49.7]} 8. Re1 {[%clk 0:03:00.8]}
8... O-O {[%clk 0:02:49.6]} 9. Nbd2 {[%clk 0:02:58.8]} 9... h6 {[%clk
0:02:44.7]} 10. Nc4 {[%clk 0:02:57.4]} 10... Re8 {[%clk 0:02:40.5]} 11. Bd2
{[%clk 0:02:56.3]} 11... Bf5 {[%clk 0:02:35.9]} 12. Nh4 {[%clk 0:02:46.1]} 12...
Be6 {[%clk 0:02:33.8]} 13. Nf3 {[%clk 0:02:46.3]} 13... Bf5 {[%clk 0:02:33.1]}
14. Nh4 {[%clk 0:02:22.8]} 14... Be6 {[%clk 0:02:32.6]} 15. Nf3 {[%clk
0:02:14.7]} 15... Bf5 {[%clk 0:02:30.9]} 1/2-1/2

[Event "Late-Titled-Tuesday-Blitz-February-13-2024"]
[Site "Chess.com"]
[Date "2024.02.13"]
[Round "7"]
[White "MikaelyanArman"]
[Black "annasargsyan_m"]
[Result "1-0"]
[WhiteElo "2816"]
[BlackElo "2583"]
[TimeControl "180+1"]
[EndTime "15:13:08 PST"]
[Termination "MikaelyanArman won by resignation"]

1. d4 {[%clk 0:03:00.9]} 1... Nf6 {[%clk 0:02:58.8]} 2. c4 {[%clk 0:03:01.2]}
2... g6 {[%clk 0:02:58.3]} 3. Nc3 {[%clk 0:03:01.4]} 3... d5 {[%clk 0:02:58.7]}
4. Nf3 {[%clk 0:02:59.8]} 4... Bg7 {[%clk 0:02:56.9]} 5. cxd5 {[%clk 0:03:00.1]}
5... Nxd5 {[%clk 0:02:56.6]} 6. e4 {[%clk 0:03:00.7]} 6... Nxc3 {[%clk
0:02:56.7]} 7. bxc3 {[%clk 0:03:01.6]} 7... c5 {[%clk 0:02:57]} 8. Bb5+ {[%clk
0:03:01.9]} 8... Bd7 {[%clk 0:02:56.2]} 9. Rb1 {[%clk 0:02:59.5]} 9... O-O
{[%clk 0:02:54.8]} 10. O-O {[%clk 0:02:50.1]} 10... Qa5 {[%clk 0:02:54.2]} 11.
Bxd7 {[%clk 0:02:45.5]} 11... Nxd7 {[%clk 0:02:55.1]} 12. Rxb7 {[%clk
0:02:45.5]} 12... Rfd8 {[%clk 0:02:55.7]} 13. Qb3 {[%clk 0:02:41.9]} 13... cxd4
{[%clk 0:02:42.8]} 14. cxd4 {[%clk 0:02:42.3]} 14... Rab8 {[%clk 0:02:36.6]} 15.
Bd2 {[%clk 0:02:35.7]} 15... Qa6 {[%clk 0:01:53.8]} 16. Rxd7 {[%clk 0:02:29.1]}
1-0

[Event "Late-Titled-Tuesday-Blitz-February-13-2024"]
[Site "Chess.com"]
[Date "2024.02.13"]
[Round "7"]
[White "ozates"]
[Black "Conejoviejo67"]
[Result "1-0"]
[WhiteElo "2587"]
[BlackElo "2443"]
[TimeControl "180+1"]
[EndTime "15:14:10 PST"]
[Termination "ozates won by checkmate"]

1. e4 {[%clk 0:02:56.2]} 1... e6 {[%clk 0:03:00]} 2. d4 {[%clk 0:02:53.7]} 2...
d5 {[%clk 0:03:00.9]} 3. Nd2 {[%clk 0:02:54.3]} 3... Nf6 {[%clk 0:03:00.8]} 4.
e5 {[%clk 0:02:54.4]} 4... Nfd7 {[%clk 0:03:01]} 5. Bd3 {[%clk 0:02:55.1]} 5...
c5 {[%clk 0:03:01.5]} 6. c3 {[%clk 0:02:55.7]} 6... Nc6 {[%clk 0:03:02]} 7. Ne2
{[%clk 0:02:56.4]} 7... Qb6 {[%clk 0:03:02.3]} 8. Nf3 {[%clk 0:02:54]} 8... Be7
{[%clk 0:03:01.8]} 9. O-O {[%clk 0:02:53.9]} 9... O-O {[%clk 0:03:00.7]} 10. a3
{[%clk 0:02:50.4]} 10... a5 {[%clk 0:02:59.3]} 11. h4 {[%clk 0:02:48]} 11... f5
{[%clk 0:02:58.3]} 12. exf6 {[%clk 0:02:47.6]} 12... Nxf6 {[%clk 0:02:58.1]} 13.
Nf4 {[%clk 0:02:43.3]} 13... Bd6 {[%clk 0:02:52.6]} 14. Re1 {[%clk 0:02:35.6]}
14... Ne4 {[%clk 0:02:42.8]} 15. Bxe4 {[%clk 0:02:34.5]} 15... dxe4 {[%clk
0:02:40.6]} 16. Rxe4 {[%clk 0:02:34.1]} 16... cxd4 {[%clk 0:02:39]} 17. Ng5
{[%clk 0:02:27.7]} 17... e5 {[%clk 0:02:28.8]} 18. Nfe6 {[%clk 0:02:12.8]} 18...
Bxe6 {[%clk 0:02:21.4]} 19. Nxe6 {[%clk 0:02:13.5]} 19... Rf6 {[%clk 0:02:21.8]}
20. Qg4 {[%clk 0:02:12.3]} 20... Rg6 {[%clk 0:02:14.3]} 21. Bg5 {[%clk 0:02:12]}
21... Re8 {[%clk 0:02:09.2]} 22. Nf4 {[%clk 0:02:07.7]} 22... Qxb2 {[%clk
0:01:59.2]} 23. Rae1 {[%clk 0:02:02.3]} 23... Rxg5 {[%clk 0:01:54.1]} 24. hxg5
{[%clk 0:01:55.2]} 24... Rf8 {[%clk 0:01:53]} 25. Qe6+ {[%clk 0:01:52]} 25...
Kh8 {[%clk 0:01:50.6]} 26. Ng6+ {[%clk 0:01:52.1]} 26... hxg6 {[%clk 0:01:46.7]}
27. Rh4# {[%clk 0:01:53]} 1-0

[Event "Late-Titled-Tuesday-Blitz-February-13-2024"]
[Site "Chess.com"]
[Date "2024.02.13"]
[Round "7"]
[White "GothamChess"]
[Black "Konavets"]
[Result "0-1"]
[WhiteElo "2712"]
[BlackElo "3014"]
[TimeControl "180+1"]
[EndTime "15:14:18 PST"]
[Termination "Konavets won by resignation"]

1. e4 {[%clk 0:03:00.9]} 1... e5 {[%clk 0:02:24.8]} 2. Nf3 {[%clk 0:03:01]} 2...
Nc6 {[%clk 0:02:25.3]} 3. c3 {[%clk 0:03:01.2]} 3... d5 {[%clk 0:02:24.8]} 4.
Qa4 {[%clk 0:03:00.9]} 4... f6 {[%clk 0:02:24.5]} 5. Bb5 {[%clk 0:02:59.5]} 5...
Ne7 {[%clk 0:02:23.5]} 6. exd5 {[%clk 0:02:58.5]} 6... Qxd5 {[%clk 0:02:24.4]}
7. d4 {[%clk 0:02:58.8]} 7... a6 {[%clk 0:02:20.6]} 8. c4 {[%clk 0:02:42.7]}
8... Qe4+ {[%clk 0:02:20]} 9. Be3 {[%clk 0:02:42.1]} 9... exd4 {[%clk
0:02:20.1]} 10. Nbd2 {[%clk 0:02:33.2]} 10... Qg6 {[%clk 0:02:10.2]} 11. Nxd4
{[%clk 0:02:26.1]} 11... Bd7 {[%clk 0:01:50.2]} 12. O-O-O {[%clk 0:02:20.1]}
12... Rd8 {[%clk 0:01:50.2]} 13. Bxc6 {[%clk 0:02:14.9]} 13... Nxc6 {[%clk
0:01:51.1]} 14. Qc2 {[%clk 0:01:39.3]} 14... Nxd4 {[%clk 0:01:49.9]} 15. Bxd4
{[%clk 0:01:38.5]} 15... Qxc2+ {[%clk 0:01:47.5]} 16. Kxc2 {[%clk 0:01:38.9]}
16... Bf5+ {[%clk 0:01:48.1]} 17. Kc3 {[%clk 0:01:39]} 17... c5 {[%clk
0:01:48.9]} 0-1

[Event "Late-Titled-Tuesday-Blitz-February-13-2024"]
[Site "Chess.com"]
[Date "2024.02.13"]
[Round "7"]
[White "IraZyne"]
[Black "ValeriyGrinev"]
[Result "0-1"]
[WhiteElo "2332"]
[BlackElo "2516"]
[TimeControl "180+1"]
[EndTime "15:14:39 PST"]
[Termination "ValeriyGrinev won by resignation"]

1. e4 {[%clk 0:03:00.9]} 1... e5 {[%clk 0:02:54.3]} 2. Bc4 {[%clk 0:02:59.5]}
2... Nf6 {[%clk 0:02:53.5]} 3. d3 {[%clk 0:02:59.3]} 3... c6 {[%clk 0:02:53]} 4.
Qe2 {[%clk 0:02:58.6]} 4... d5 {[%clk 0:02:46.2]} 5. exd5 {[%clk 0:02:57.9]}
5... Bd6 {[%clk 0:02:46.8]} 6. Bg5 {[%clk 0:02:50.6]} 6... O-O {[%clk 0:02:46]}
7. Nc3 {[%clk 0:02:49.1]} 7... h6 {[%clk 0:02:34]} 8. Bxf6 {[%clk 0:02:48.1]}
8... Qxf6 {[%clk 0:02:33.5]} 9. Ne4 {[%clk 0:02:48]} 9... Qg6 {[%clk 0:02:33.5]}
10. Nxd6 {[%clk 0:02:46.1]} 10... Qxd6 {[%clk 0:02:32.9]} 11. dxc6 {[%clk
0:02:45.8]} 11... Nxc6 {[%clk 0:02:33.7]} 12. Nf3 {[%clk 0:02:45.6]} 12... Bg4
{[%clk 0:02:32.7]} 13. h3 {[%clk 0:02:43.9]} 13... Nd4 {[%clk 0:02:31.8]} 14.
Qe4 {[%clk 0:02:39.4]} 14... Bxf3 {[%clk 0:02:30.6]} 15. gxf3 {[%clk 0:02:39.3]}
15... Nxc2+ {[%clk 0:02:30.8]} 16. Kd2 {[%clk 0:02:38.2]} 16... Nxa1 {[%clk
0:02:31.3]} 17. Rxa1 {[%clk 0:02:38.1]} 17... b5 {[%clk 0:02:22.1]} 18. Bb3
{[%clk 0:02:35.3]} 18... a5 {[%clk 0:02:21.8]} 19. a3 {[%clk 0:02:28.2]} 19...
a4 {[%clk 0:02:14.9]} 20. Ba2 {[%clk 0:02:27.5]} 20... Qd4 {[%clk 0:02:15.6]}
21. Qxd4 {[%clk 0:02:25.9]} 21... exd4 {[%clk 0:02:16.5]} 22. Bd5 {[%clk
0:02:23.4]} 22... Rac8 {[%clk 0:02:14.3]} 23. Rg1 {[%clk 0:02:18.9]} 23... Rc5
{[%clk 0:02:14.7]} 24. Ba2 {[%clk 0:02:15.1]} 24... Rfc8 {[%clk 0:02:14]} 25.
Bb1 {[%clk 0:02:15]} 25... Rf5 {[%clk 0:02:10.1]} 26. Rg3 {[%clk 0:02:14.4]}
26... Rg5 {[%clk 0:02:08.5]} 27. f4 {[%clk 0:02:12.4]} 27... Rxg3 {[%clk
0:02:08.1]} 28. fxg3 {[%clk 0:02:12.4]} 28... Re8 {[%clk 0:02:09]} 29. Ba2
{[%clk 0:02:06.7]} 29... Re3 {[%clk 0:02:09.9]} 30. Bd5 {[%clk 0:02:05.8]} 30...
Rxg3 {[%clk 0:02:08.4]} 31. Bc6 {[%clk 0:02:05.5]} 31... Rxh3 {[%clk 0:02:07.5]}
32. Bxb5 {[%clk 0:02:05.6]} 32... Rh2+ {[%clk 0:02:08]} 33. Kc1 {[%clk
0:02:05.5]} 33... h5 {[%clk 0:02:07.3]} 34. Bxa4 {[%clk 0:02:05.5]} 34... h4
{[%clk 0:02:07.9]} 35. Bc6 {[%clk 0:02:04.8]} 35... h3 {[%clk 0:02:07.7]} 36. a4
{[%clk 0:02:05]} 36... Rg2 {[%clk 0:02:04.3]} 37. a5 {[%clk 0:02:02.6]} 37...
Rg1+ {[%clk 0:02:04.4]} 38. Kc2 {[%clk 0:02:02]} 38... h2 {[%clk 0:02:05.3]} 39.
a6 {[%clk 0:02:01.3]} 39... h1=Q {[%clk 0:02:03.4]} 40. Bxh1 {[%clk 0:02:01]}
40... Rxh1 {[%clk 0:02:04]} 41. b4 {[%clk 0:02:01.3]} 41... Ra1 {[%clk
0:02:03.9]} 42. b5 {[%clk 0:02:01.3]} 42... Ra5 {[%clk 0:02:03.9]} 43. Kb3
{[%clk 0:01:55.7]} 43... Rxb5+ {[%clk 0:02:03.3]} 44. Ka4 {[%clk 0:01:55.9]}
44... Rb1 {[%clk 0:02:03.1]} 45. Ka5 {[%clk 0:01:54.8]} 45... f6 {[%clk
0:01:59.7]} 0-1

[Event "Late-Titled-Tuesday-Blitz-February-13-2024"]
[Site "Chess.com"]
[Date "2024.02.13"]
[Round "7"]
[White "picturesquecheck"]
[Black "miraitrunks"]
[Result "1-0"]
[WhiteElo "2405"]
[BlackElo "2209"]
[TimeControl "180+1"]
[EndTime "15:14:57 PST"]
[Termination "picturesquecheck won by resignation"]

1. e4 {[%clk 0:03:00.9]} 1... c5 {[%clk 0:02:59.5]} 2. Nf3 {[%clk 0:03:00.7]}
2... d6 {[%clk 0:02:59.9]} 3. d4 {[%clk 0:03:01.1]} 3... cxd4 {[%clk 0:03:00.8]}
4. Nxd4 {[%clk 0:03:01.5]} 4... Nf6 {[%clk 0:03:01.5]} 5. Nc3 {[%clk 0:03:02.1]}
5... g6 {[%clk 0:03:01.9]} 6. Be3 {[%clk 0:03:02.3]} 6... Bg7 {[%clk 0:03:02.2]}
7. Bc4 {[%clk 0:03:02.5]} 7... O-O {[%clk 0:03:02.4]} 8. Bb3 {[%clk 0:03:02.7]}
8... Nc6 {[%clk 0:03:02.8]} 9. f3 {[%clk 0:03:02.8]} 9... Na5 {[%clk 0:03:02.1]}
10. Qd2 {[%clk 0:03:02.8]} 10... Nxb3 {[%clk 0:03:02.3]} 11. cxb3 {[%clk
0:03:03.2]} 11... d5 {[%clk 0:03:02.7]} 12. e5 {[%clk 0:03:02.8]} 12... Nd7
{[%clk 0:03:00.2]} 13. f4 {[%clk 0:03:03.1]} 13... Nc5 {[%clk 0:02:59]} 14. O-O
{[%clk 0:03:02.3]} 14... a6 {[%clk 0:02:52.3]} 15. b4 {[%clk 0:03:01.8]} 15...
Ne6 {[%clk 0:02:51.7]} 16. a3 {[%clk 0:02:59.5]} 16... Nxd4 {[%clk 0:02:47.7]}
17. Bxd4 {[%clk 0:03:00.4]} 17... Bf5 {[%clk 0:02:44.4]} 18. Rfd1 {[%clk
0:02:58.7]} 18... e6 {[%clk 0:02:44.5]} 19. h3 {[%clk 0:02:55.5]} 19... h5
{[%clk 0:02:44.4]} 20. Qe2 {[%clk 0:02:54.8]} 20... Qh4 {[%clk 0:02:42.9]} 21.
Qf2 {[%clk 0:02:49.6]} 21... Qxf2+ {[%clk 0:02:34.1]} 22. Kxf2 {[%clk
0:02:49.1]} 22... Rac8 {[%clk 0:02:34]} 23. Rac1 {[%clk 0:02:46.2]} 23... Rc4
{[%clk 0:02:33.8]} 24. Bc5 {[%clk 0:02:46.1]} 24... Rc8 {[%clk 0:02:32.7]} 25.
Ne2 {[%clk 0:02:36.8]} 25... Rxc1 {[%clk 0:02:24.5]} 26. Rxc1 {[%clk 0:02:34.1]}
26... g5 {[%clk 0:02:24.8]} 27. Be3 {[%clk 0:02:20.2]} 27... Rxc1 {[%clk
0:02:22.3]} 28. Nxc1 {[%clk 0:02:21.1]} 28... g4 {[%clk 0:02:21.6]} 29. hxg4
{[%clk 0:02:19.2]} 29... hxg4 {[%clk 0:02:20.2]} 30. g3 {[%clk 0:02:18.3]} 30...
f6 {[%clk 0:02:11]} 31. Bd4 {[%clk 0:02:07.4]} 31... fxe5 {[%clk 0:02:11.1]} 32.
fxe5 {[%clk 0:02:07.4]} 32... Kf7 {[%clk 0:02:06.7]} 33. Nb3 {[%clk 0:02:07.3]}
33... Bf8 {[%clk 0:02:05.4]} 34. Bc5 {[%clk 0:01:54.8]} 34... Bd3 {[%clk
0:01:58.6]} 35. Bxf8 {[%clk 0:01:52.5]} 35... Kxf8 {[%clk 0:01:58.9]} 36. Nc5
{[%clk 0:01:52.2]} 36... Bc4 {[%clk 0:01:56.9]} 37. Nxe6+ {[%clk 0:01:45.7]}
37... Ke7 {[%clk 0:01:55.2]} 38. Nf4 {[%clk 0:01:45.2]} 38... Bb3 {[%clk
0:01:54.2]} 39. Ke3 {[%clk 0:01:45]} 1-0

[Event "Late-Titled-Tuesday-Blitz-February-13-2024"]
[Site "Chess.com"]
[Date "2024.02.13"]
[Round "7"]
[White "maxip32"]
[Black "TheAlienParty"]
[Result "1-0"]
[WhiteElo "2658"]
[BlackElo "2417"]
[TimeControl "180+1"]
[EndTime "15:15:16 PST"]
[Termination "maxip32 won by checkmate"]

1. e4 {[%clk 0:03:00.9]} 1... e5 {[%clk 0:02:58.8]} 2. Nf3 {[%clk 0:03:00.8]}
2... Nc6 {[%clk 0:02:58.4]} 3. Bc4 {[%clk 0:03:01.3]} 3... Bc5 {[%clk
0:02:57.7]} 4. O-O {[%clk 0:03:01.2]} 4... Nf6 {[%clk 0:02:57.1]} 5. d3 {[%clk
0:03:01.4]} 5... O-O {[%clk 0:02:54]} 6. Nbd2 {[%clk 0:02:59.6]} 6... a5 {[%clk
0:02:45.9]} 7. h3 {[%clk 0:02:57.6]} 7... h6 {[%clk 0:02:36.7]} 8. Re1 {[%clk
0:02:50.6]} 8... Re8 {[%clk 0:02:35.9]} 9. a3 {[%clk 0:02:48.8]} 9... Bf8 {[%clk
0:02:34.9]} 10. Nf1 {[%clk 0:02:48.3]} 10... d6 {[%clk 0:02:33.2]} 11. c3 {[%clk
0:02:46]} 11... Be6 {[%clk 0:02:30.5]} 12. Bb5 {[%clk 0:02:44.6]} 12... g6
{[%clk 0:02:26.3]} 13. Ng3 {[%clk 0:02:42.8]} 13... Bg7 {[%clk 0:02:25.2]} 14.
d4 {[%clk 0:02:42.3]} 14... Bd7 {[%clk 0:02:21.2]} 15. d5 {[%clk 0:02:36.6]}
15... Ne7 {[%clk 0:02:19]} 16. Bxd7 {[%clk 0:02:37.5]} 16... Nxd7 {[%clk
0:02:17.9]} 17. c4 {[%clk 0:02:38.4]} 17... a4 {[%clk 0:02:15.8]} 18. b4 {[%clk
0:02:34]} 18... axb3 {[%clk 0:02:15.2]} 19. Qxb3 {[%clk 0:02:34.5]} 19... Nc5
{[%clk 0:02:15.3]} 20. Qc2 {[%clk 0:02:34.7]} 20... Rf8 {[%clk 0:02:14.7]} 21.
Be3 {[%clk 0:02:29.2]} 21... Qd7 {[%clk 0:02:14.2]} 22. Bxc5 {[%clk 0:02:29]}
22... dxc5 {[%clk 0:02:13.8]} 23. a4 {[%clk 0:02:23.4]} 23... Nc8 {[%clk
0:02:12.4]} 24. a5 {[%clk 0:02:23.2]} 24... Nd6 {[%clk 0:02:11.8]} 25. Nd2
{[%clk 0:02:16.2]} 25... b6 {[%clk 0:02:06.6]} 26. axb6 {[%clk 0:02:13.1]} 26...
cxb6 {[%clk 0:02:06.4]} 27. Reb1 {[%clk 0:02:11.3]} 27... Qc7 {[%clk 0:02:00.3]}
28. Qb3 {[%clk 0:02:05.8]} 28... Rxa1 {[%clk 0:01:52.4]} 29. Rxa1 {[%clk
0:02:06.7]} 29... f5 {[%clk 0:01:52.2]} 30. Ra6 {[%clk 0:02:01.6]} 30... Rb8
{[%clk 0:01:51]} 31. Qa4 {[%clk 0:01:51.4]} 31... Kf7 {[%clk 0:01:46.7]} 32. Qc2
{[%clk 0:01:43.7]} 32... f4 {[%clk 0:01:44.9]} 33. Ngf1 {[%clk 0:01:43.9]} 33...
Bf8 {[%clk 0:01:38.3]} 34. Qa4 {[%clk 0:01:40.8]} 34... Rb7 {[%clk 0:01:34.3]}
35. Nh2 {[%clk 0:01:40.3]} 35... h5 {[%clk 0:01:32.5]} 36. Nhf3 {[%clk
0:01:40.2]} 36... Kf6 {[%clk 0:01:30.6]} 37. Nxe5 {[%clk 0:01:30.4]} 37... Kxe5
{[%clk 0:01:28.3]} 38. Qa1# {[%clk 0:01:29.9]} 1-0